[Event "Titled Tuesday Blitz June 6 Early 2023"]
[White "Kashlinskaya, Alina"]
[Black "Terry, Renato"]
[WhiteFideId "4198026"]
[BlackFideId "3803457"]
[WhiteElo "2383"]
[BlackElo "2575"]
[Result "1/2-1/2"]
[Round "3"]
[TimeControl "180+2"]
[Date "2023.06.06"]
[WhiteClock "0:00:19"]
[BlackClock "0:00:11"]
[Board "22"]

1. Nf3 {[%clk 0:03:00]}  d5 {[%clk 0:02:58]} 2. g3 {[%clk 0:03:00]}  Nf6 {[%clk 0:02:58]} 3. Bg2 {[%clk 0:03:01]}  c6 {[%clk 0:02:58]} 4. O-O {[%clk 0:03:01]}  Bg4 {[%clk 0:02:58]} 5. d4 {[%clk 0:03:01]}  Nbd7 {[%clk 0:02:58]} 6. h3 {[%clk 0:02:57]}  Bh5 {[%clk 0:02:56]} 7. c4 {[%clk 0:02:53]}  e6 {[%clk 0:02:55]} 8. cxd5 {[%clk 0:02:52]}  cxd5 {[%clk 0:02:48]} 9. Nc3 {[%clk 0:02:52]}  Be7 {[%clk 0:02:42]} 10. Bf4 {[%clk 0:02:49]}  O-O {[%clk 0:02:42]} 11. Rc1 {[%clk 0:02:42]}  a6 {[%clk 0:02:40]} 12. Qb3 {[%clk 0:02:40]}  Qb6 {[%clk 0:02:39]} 13. Qxb6 {[%clk 0:02:31]}  Nxb6 {[%clk 0:02:40]} 14. g4 {[%clk 0:02:29]}  Bg6 {[%clk 0:02:40]} 15. Ne5 {[%clk 0:02:30]}  Rac8 {[%clk 0:02:36]} 16. h4 {[%clk 0:02:20]}  h5 {[%clk 0:02:18]} 17. g5 {[%clk 0:02:14]}  Ne4 {[%clk 0:02:13]} 18. Nxg6 {[%clk 0:01:58]}  fxg6 {[%clk 0:02:13]} 19. e3 {[%clk 0:01:42]}  Nxc3 {[%clk 0:01:48]} 20. Rxc3 {[%clk 0:01:40]}  Na4 {[%clk 0:01:33]} 21. Rxc8 {[%clk 0:01:18]}  Rxc8 {[%clk 0:01:34]} 22. e4 {[%clk 0:01:19]}  Nb6 {[%clk 0:01:10]} 23. Rc1 {[%clk 0:01:04]}  Rxc1+ {[%clk 0:01:08]} 24. Bxc1 {[%clk 0:01:05]}  Kf7 {[%clk 0:01:09]} 25. Kf1 {[%clk 0:01:05]}  Bd6 {[%clk 0:01:04]} 26. Ke2 {[%clk 0:01:04]}  Ke7 {[%clk 0:01:02]} 27. Kd3 {[%clk 0:01:04]}  Kd7 {[%clk 0:01:01]} 28. b3 {[%clk 0:01:03]}  Kc6 {[%clk 0:00:48]} 29. Bd2 {[%clk 0:01:02]}  Nd7 {[%clk 0:00:40]} 30. Kc3 {[%clk 0:00:55]}  Nb6 {[%clk 0:00:30]} 31. Kd3 {[%clk 0:00:53]}  Nd7 {[%clk 0:00:30]} 32. Ke3 {[%clk 0:00:52]}  Nf8 {[%clk 0:00:28]} 33. Bf1 {[%clk 0:00:52]}  Be7 {[%clk 0:00:22]} 34. Bd3 {[%clk 0:00:51]}  Bd6 {[%clk 0:00:22]} 35. Ba5 {[%clk 0:00:51]}  Be7 {[%clk 0:00:22]} 36. a4 {[%clk 0:00:47]}  Kd7 {[%clk 0:00:20]} 37. b4 {[%clk 0:00:44]}  Kc8 {[%clk 0:00:15]} 38. b5 {[%clk 0:00:44]}  axb5 {[%clk 0:00:16]} 39. Bxb5 {[%clk 0:00:44]}  Nd7 {[%clk 0:00:17]} 40. Bd3 {[%clk 0:00:41]}  Nf8 {[%clk 0:00:16]} 41. Bc3 {[%clk 0:00:40]}  Bd6 {[%clk 0:00:15]} 42. a5 {[%clk 0:00:40]}  Bh2 {[%clk 0:00:12]} 43. Bc2 {[%clk 0:00:34]}  Bd6 {[%clk 0:00:10]} 44. Bb3 {[%clk 0:00:33]}  dxe4 {[%clk 0:00:09]} 45. Kxe4 {[%clk 0:00:33]}  Kd7 {[%clk 0:00:06]} 46. d5 {[%clk 0:00:33]}  Ke7 {[%clk 0:00:04]} 47. Bxg7 {[%clk 0:00:32]}  Nd7 {[%clk 0:00:05]} 48. Bc2 {[%clk 0:00:17]}  e5 {[%clk 0:00:05]} 49. Bh8 {[%clk 0:00:15]}  Kf7 {[%clk 0:00:05]} 50. f4 {[%clk 0:00:14]}  exf4 {[%clk 0:00:05]} 51. Bd4 {[%clk 0:00:14]}  Nc5+ {[%clk 0:00:01]} 52. Bxc5 {[%clk 0:00:14]}  Bxc5 {[%clk 0:00:01]} 53. Kxf4 {[%clk 0:00:15]}  Bd6+ {[%clk 0:00:02]} 54. Ke4 {[%clk 0:00:15]}  Bg3 {[%clk 0:00:01]} 55. Ba4 {[%clk 0:00:12]}  Ke7 {[%clk 0:00:01]} 56. Bb5 {[%clk 0:00:12]}  Bxh4 {[%clk 0:00:02]} 57. Kf4 {[%clk 0:00:11]}  Be1 {[%clk 0:00:02]} 58. a6 {[%clk 0:00:10]}  bxa6 {[%clk 0:00:02]} 59. Bxa6 {[%clk 0:00:11]}  Bd2+ {[%clk 0:00:02]} 60. Kg3 {[%clk 0:00:10]}  Bxg5 {[%clk 0:00:02]} 61. Bd3 {[%clk 0:00:10]}  Kf7 {[%clk 0:00:02]} 62. Bxg6+ {[%clk 0:00:10]}  Kxg6 {[%clk 0:00:02]} 63. d6 {[%clk 0:00:10]}  Bd8 {[%clk 0:00:02]} 64. d7 {[%clk 0:00:11]}  Kf5 {[%clk 0:00:03]} 65. Kh3 {[%clk 0:00:11]}  Ke6 {[%clk 0:00:03]} 66. Kh2 {[%clk 0:00:11]}  Kxd7 {[%clk 0:00:04]} 67. Kh3 {[%clk 0:00:11]}  Ke6 {[%clk 0:00:04]} 68. Kh2 {[%clk 0:00:12]}  Kf5 {[%clk 0:00:05]} 69. Kh1 {[%clk 0:00:13]}  Ke4 {[%clk 0:00:06]} 70. Kg1 {[%clk 0:00:13]}  Kf3 {[%clk 0:00:07]} 71. Kh1 {[%clk 0:00:14]}  Kg3 {[%clk 0:00:07]} 72. Kg1 {[%clk 0:00:14]}  Kh3 {[%clk 0:00:08]} 73. Kh1 {[%clk 0:00:15]}  Bc7 {[%clk 0:00:07]} 74. Kg1 {[%clk 0:00:15]}  Bh2+ {[%clk 0:00:08]} 75. Kh1 {[%clk 0:00:16]}  Bg1 {[%clk 0:00:08]} 76. Kxg1 {[%clk 0:00:16]}  h4 {[%clk 0:00:08]} 77. Kh1 {[%clk 0:00:17]}  Kg3 {[%clk 0:00:09]} 78. Kg1 {[%clk 0:00:17]}  h3 {[%clk 0:00:10]} 79. Kh1 {[%clk 0:00:18]}  Kg4 {[%clk 0:00:11]} 80. Kg1 {[%clk 0:00:18]}  h2+ {[%clk 0:00:11]} 81. Kxh2 {[%clk 0:00:19]} 1/2-1/2


[Site "https://www.chess.com"]

[Event "Titled Tuesday Blitz June 6 Early 2023"]
[White "Samadov, Read"]
[Black "Souleidis, Georgios"]
[WhiteFideId "13417444"]
[BlackFideId "4206827"]
[WhiteElo "2355"]
[BlackElo "2401"]
[Result "1-0"]
[Round "3"]
[TimeControl "180+2"]
[Date "2023.06.06"]
[WhiteClock "0:00:18"]
[BlackClock "0:00:02"]
[Board "23"]

1. d4 {[%clk 0:03:00]}  Nf6 {[%clk 0:02:59]} 2. c4 {[%clk 0:03:01]}  g6 {[%clk 0:03:00]} 3. Nc3 {[%clk 0:03:00]}  Bg7 {[%clk 0:03:00]} 4. e4 {[%clk 0:03:00]}  d6 {[%clk 0:03:01]} 5. Be2 {[%clk 0:03:01]}  O-O {[%clk 0:03:01]} 6. Be3 {[%clk 0:03:00]}  e5 {[%clk 0:03:01]} 7. d5 {[%clk 0:03:00]}  Na6 {[%clk 0:03:01]} 8. h4 {[%clk 0:02:59]}  Nc5 {[%clk 0:03:00]} 9. Qc2 {[%clk 0:02:59]}  Ng4 {[%clk 0:02:57]} 10. Bxg4 {[%clk 0:02:57]}  Bxg4 {[%clk 0:02:56]} 11. f3 {[%clk 0:02:58]}  Bd7 {[%clk 0:02:56]} 12. Nge2 {[%clk 0:02:46]}  a5 {[%clk 0:02:49]} 13. h5 {[%clk 0:02:45]}  Bf6 {[%clk 0:02:43]} 14. Qd2 {[%clk 0:02:41]}  Bg7 {[%clk 0:02:29]} 15. g4 {[%clk 0:02:34]}  c6 {[%clk 0:02:01]} 16. O-O-O {[%clk 0:02:29]}  cxd5 {[%clk 0:01:55]} 17. Nxd5 {[%clk 0:02:29]}  Bc6 {[%clk 0:01:47]} 18. Nec3 {[%clk 0:02:26]}  Ne6 {[%clk 0:01:45]} 19. hxg6 {[%clk 0:02:18]}  fxg6 {[%clk 0:01:36]} 20. Qh2 {[%clk 0:02:18]}  Kf7 {[%clk 0:01:16]} 21. Kb1 {[%clk 0:01:52]}  Rh8 {[%clk 0:01:16]} 22. f4 {[%clk 0:01:48]}  exf4 {[%clk 0:01:15]} 23. Bxf4 {[%clk 0:01:43]}  Nxf4 {[%clk 0:01:06]} 24. Qxf4+ {[%clk 0:01:42]}  Kg8 {[%clk 0:01:05]} 25. c5 {[%clk 0:01:29]}  Be5 {[%clk 0:01:00]} 26. Qe3 {[%clk 0:01:17]}  h6 {[%clk 0:00:23]} 27. cxd6 {[%clk 0:01:12]}  Kg7 {[%clk 0:00:19]} 28. Nc7 {[%clk 0:01:08]}  Qg8 {[%clk 0:00:17]} 29. Nxa8 {[%clk 0:01:06]}  Qxa8 {[%clk 0:00:18]} 30. Ka1 {[%clk 0:00:56]}  Qf8 {[%clk 0:00:16]} 31. Rhf1 {[%clk 0:00:54]}  Qd8 {[%clk 0:00:17]} 32. Qf2 {[%clk 0:00:44]}  Qd7 {[%clk 0:00:15]} 33. Qc5 {[%clk 0:00:42]}  Re8 {[%clk 0:00:13]} 34. Nd5 {[%clk 0:00:39]}  a4 {[%clk 0:00:10]} 35. Ne7 {[%clk 0:00:36]}  Qe6 {[%clk 0:00:07]} 36. a3 {[%clk 0:00:25]}  Bxe4 {[%clk 0:00:04]} 37. Qb4 {[%clk 0:00:21]}  Bc6 {[%clk 0:00:03]} 38. Nxc6 {[%clk 0:00:20]}  bxc6 {[%clk 0:00:03]} 39. Qb7+ {[%clk 0:00:21]}  Kg8 {[%clk 0:00:02]} 40. d7 {[%clk 0:00:20]}  Rd8 {[%clk 0:00:02]} 41. Rfe1 {[%clk 0:00:18]} 1-0


[Site "https://www.chess.com"]

[Event "Titled Tuesday Blitz June 6 Early 2023"]
[White "Korchmar, Vasiliy"]
[Black "Talibov, Shiroghlan"]
[WhiteFideId "24131750"]
[BlackFideId "13429078"]
[WhiteElo "2370"]
[BlackElo "2274"]
[Result "0-1"]
[Round "3"]
[TimeControl "180+2"]
[Date "2023.06.06"]
[WhiteClock "0:00:01"]
[BlackClock "0:00:11"]
[Board "24"]

1. e4 {[%clk 0:03:00]}  c5 {[%clk 0:02:51]} 2. Nf3 {[%clk 0:03:00]}  a6 {[%clk 0:02:51]} 3. g3 {[%clk 0:02:56]}  b5 {[%clk 0:02:50]} 4. Bg2 {[%clk 0:02:56]}  Bb7 {[%clk 0:02:51]} 5. Qe2 {[%clk 0:02:56]}  g6 {[%clk 0:02:50]} 6. O-O {[%clk 0:02:55]}  Bg7 {[%clk 0:02:51]} 7. c3 {[%clk 0:02:55]}  Nc6 {[%clk 0:02:51]} 8. Rd1 {[%clk 0:02:55]}  e5 {[%clk 0:02:51]} 9. Na3 {[%clk 0:02:36]}  Nge7 {[%clk 0:02:49]} 10. Nc2 {[%clk 0:02:36]}  O-O {[%clk 0:02:45]} 11. d4 {[%clk 0:02:37]}  cxd4 {[%clk 0:02:44]} 12. cxd4 {[%clk 0:02:38]}  exd4 {[%clk 0:02:45]} 13. Ncxd4 {[%clk 0:02:36]}  Re8 {[%clk 0:02:38]} 14. Bg5 {[%clk 0:02:28]}  Qb6 {[%clk 0:02:34]} 15. Be3 {[%clk 0:02:22]}  Nxd4 {[%clk 0:02:13]} 16. Bxd4 {[%clk 0:02:20]}  Bxd4 {[%clk 0:02:11]} 17. Rxd4 {[%clk 0:02:19]}  d5 {[%clk 0:02:11]} 18. e5 {[%clk 0:02:03]}  Nf5 {[%clk 0:02:01]} 19. Rd2 {[%clk 0:02:03]}  Rad8 {[%clk 0:01:55]} 20. Rad1 {[%clk 0:02:03]}  f6 {[%clk 0:01:42]} 21. Bh3 {[%clk 0:01:12]}  Ng7 {[%clk 0:01:37]} 22. Re1 {[%clk 0:00:53]}  d4 {[%clk 0:01:25]} 23. Qd3 {[%clk 0:00:23]}  Bxf3 {[%clk 0:01:20]} 24. Qxf3 {[%clk 0:00:24]}  fxe5 {[%clk 0:01:19]} 25. Rde2 {[%clk 0:00:20]}  Qd6 {[%clk 0:01:19]} 26. Qb3+ {[%clk 0:00:06]}  Kh8 {[%clk 0:01:19]} 27. f4 {[%clk 0:00:07]}  exf4 {[%clk 0:01:16]} 28. Rxe8+ {[%clk 0:00:04]}  Rxe8 {[%clk 0:01:16]} 29. Rxe8+ {[%clk 0:00:04]}  Nxe8 {[%clk 0:01:17]} 30. Qf7 {[%clk 0:00:04]}  Ng7 {[%clk 0:00:59]} 31. gxf4 {[%clk 0:00:02]}  d3 {[%clk 0:00:58]} 32. Bg4 {[%clk 0:00:03]}  d2 {[%clk 0:00:56]} 33. Bd1 {[%clk 0:00:03]}  h6 {[%clk 0:00:54]} 34. Kf2 {[%clk 0:00:03]}  Nf5 {[%clk 0:00:46]} 35. Bb3 {[%clk 0:00:02]}  Qxf4+ {[%clk 0:00:37]} 36. Ke2 {[%clk 0:00:01]}  Nd4+ {[%clk 0:00:37]} 37. Kd1 {[%clk 0:00:01]}  Qxf7 {[%clk 0:00:28]} 38. Bxf7 {[%clk 0:00:02]}  Kg7 {[%clk 0:00:29]} 39. Bd5 {[%clk 0:00:02]}  Kf6 {[%clk 0:00:26]} 40. Kxd2 {[%clk 0:00:02]}  Ke5 {[%clk 0:00:26]} 41. Bf7 {[%clk 0:00:02]}  g5 {[%clk 0:00:26]} 42. Kc3 {[%clk 0:00:02]}  a5 {[%clk 0:00:23]} 43. Be8 {[%clk 0:00:02]}  Kd5 {[%clk 0:00:23]} 44. Kd3 {[%clk 0:00:02]}  Ke5 {[%clk 0:00:16]} 45. Bd7 {[%clk 0:00:02]}  Kd5 {[%clk 0:00:13]} 46. Be8 {[%clk 0:00:02]}  Nf3 {[%clk 0:00:11]} 47. h3 {[%clk 0:00:02]}  Ne5+ {[%clk 0:00:11]} 48. Ke3 {[%clk 0:00:01]}  Nc4+ {[%clk 0:00:11]} 0-1


[Site "https://www.chess.com"]

[Event "Titled Tuesday Blitz June 6 Early 2023"]
[White "Jeet, Jain"]
[Black "Ahmadzada, Ahmad"]
[WhiteFideId "5073022"]
[BlackFideId "13413007"]
[WhiteElo "2067"]
[BlackElo "2388"]
[Result "0-1"]
[Round "3"]
[TimeControl "180+2"]
[Date "2023.06.06"]
[WhiteClock "0:00:16"]
[BlackClock "0:01:43"]
[Board "26"]

1. d4 {[%clk 0:02:49]}  Nf6 {[%clk 0:03:00]} 2. Nf3 {[%clk 0:02:47]}  g6 {[%clk 0:03:00]} 3. g3 {[%clk 0:02:45]}  Bg7 {[%clk 0:03:00]} 4. Bg2 {[%clk 0:02:45]}  O-O {[%clk 0:03:00]} 5. O-O {[%clk 0:02:46]}  c5 {[%clk 0:03:01]} 6. c3 {[%clk 0:02:45]}  b6 {[%clk 0:03:00]} 7. Nbd2 {[%clk 0:02:43]}  Bb7 {[%clk 0:03:00]} 8. Re1 {[%clk 0:02:44]}  d5 {[%clk 0:02:59]} 9. Ne5 {[%clk 0:02:44]}  Nbd7 {[%clk 0:02:58]} 10. Nxd7 {[%clk 0:02:40]}  Nxd7 {[%clk 0:02:57]} 11. Nf3 {[%clk 0:02:39]}  e6 {[%clk 0:02:56]} 12. Bf4 {[%clk 0:02:36]}  Qe7 {[%clk 0:02:56]} 13. h4 {[%clk 0:02:34]}  h6 {[%clk 0:02:53]} 14. Qd2 {[%clk 0:02:34]}  Kh7 {[%clk 0:02:53]} 15. Rac1 {[%clk 0:02:23]}  Rfc8 {[%clk 0:02:54]} 16. Qd3 {[%clk 0:02:15]}  Nf6 {[%clk 0:02:47]} 17. Be5 {[%clk 0:02:13]}  Ne4 {[%clk 0:02:41]} 18. Bxg7 {[%clk 0:02:11]}  Kxg7 {[%clk 0:02:42]} 19. Nd2 {[%clk 0:02:07]}  Nd6 {[%clk 0:02:42]} 20. e4 {[%clk 0:02:06]}  dxe4 {[%clk 0:02:43]} 21. Nxe4 {[%clk 0:02:06]}  Bxe4 {[%clk 0:02:38]} 22. Bxe4 {[%clk 0:02:07]}  Rab8 {[%clk 0:02:38]} 23. h5 {[%clk 0:02:03]}  g5 {[%clk 0:02:36]} 24. d5 {[%clk 0:01:53]}  e5 {[%clk 0:02:34]} 25. c4 {[%clk 0:01:51]}  Rf8 {[%clk 0:02:34]} 26. Bf5 {[%clk 0:01:47]}  Rbe8 {[%clk 0:02:34]} 27. f3 {[%clk 0:01:44]}  Qf6 {[%clk 0:02:33]} 28. Be4 {[%clk 0:01:38]}  Re7 {[%clk 0:02:24]} 29. Rc2 {[%clk 0:01:38]}  a6 {[%clk 0:02:22]} 30. a4 {[%clk 0:01:37]}  Rb7 {[%clk 0:02:20]} 31. Rf2 {[%clk 0:01:37]}  Qd8 {[%clk 0:02:19]} 32. Bf5 {[%clk 0:01:36]}  b5 {[%clk 0:02:20]} 33. axb5 {[%clk 0:01:34]}  axb5 {[%clk 0:02:20]} 34. b3 {[%clk 0:01:33]}  Qf6 {[%clk 0:02:19]} 35. Be4 {[%clk 0:01:30]}  bxc4 {[%clk 0:02:20]} 36. bxc4 {[%clk 0:01:30]}  Qd8 {[%clk 0:02:17]} 37. Bf5 {[%clk 0:01:30]}  Qf6 {[%clk 0:02:18]} 38. Be4 {[%clk 0:01:30]}  Rfb8 {[%clk 0:02:19]} 39. Rc1 {[%clk 0:01:07]}  Rb3 {[%clk 0:02:18]} 40. Qe2 {[%clk 0:01:04]}  Qe7 {[%clk 0:02:14]} 41. Bc2 {[%clk 0:01:00]}  Rc3 {[%clk 0:02:10]} 42. f4 {[%clk 0:00:58]}  Rxg3+ {[%clk 0:02:08]} 43. Kh2 {[%clk 0:00:59]}  gxf4 {[%clk 0:02:00]} 44. Kh1 {[%clk 0:00:29]}  Kh8 {[%clk 0:01:49]} 45. Rxf4 {[%clk 0:00:20]}  Rbg8 {[%clk 0:01:45]} 46. Rf2 {[%clk 0:00:20]}  Qg5 {[%clk 0:01:43]} 47. Qd1 {[%clk 0:00:16]}  Rh3+ {[%clk 0:01:43]} 0-1


[Site "https://www.chess.com"]

[Event "Titled Tuesday Blitz June 6 Early 2023"]
[White "Grigorjev, Iljya"]
[Black "Hua, Lefong"]
[WhiteFideId "24159565"]
[BlackFideId "2602253"]
[WhiteElo "2323"]
[BlackElo "2647"]
[Result "1-0"]
[Round "3"]
[TimeControl "180+2"]
[Date "2023.06.06"]
[WhiteClock "0:00:33"]
[BlackClock "0:00:07"]
[Board "27"]

1. d4 {[%clk 0:03:00]}  Nf6 {[%clk 0:03:00]} 2. c4 {[%clk 0:03:00]}  c5 {[%clk 0:03:00]} 3. d5 {[%clk 0:02:59]}  e6 {[%clk 0:03:01]} 4. Nc3 {[%clk 0:02:59]}  exd5 {[%clk 0:03:01]} 5. cxd5 {[%clk 0:03:00]}  d6 {[%clk 0:03:02]} 6. e4 {[%clk 0:02:59]}  g6 {[%clk 0:03:02]} 7. f4 {[%clk 0:02:59]}  Bg7 {[%clk 0:03:02]} 8. Bb5+ {[%clk 0:02:59]}  Nbd7 {[%clk 0:03:02]} 9. e5 {[%clk 0:02:50]}  dxe5 {[%clk 0:03:03]} 10. fxe5 {[%clk 0:02:48]}  Nh5 {[%clk 0:03:04]} 11. e6 {[%clk 0:02:34]}  Qh4+ {[%clk 0:03:03]} 12. g3 {[%clk 0:02:34]}  Nxg3 {[%clk 0:03:03]} 13. hxg3 {[%clk 0:02:34]}  Bxc3+ {[%clk 0:02:58]} 14. bxc3 {[%clk 0:02:34]}  Qxh1 {[%clk 0:02:58]} 15. Be3 {[%clk 0:02:22]}  a6 {[%clk 0:02:56]} 16. exd7+ {[%clk 0:02:20]}  Bxd7 {[%clk 0:02:57]} 17. Bxd7+ {[%clk 0:02:20]}  Kxd7 {[%clk 0:02:58]} 18. Qa4+ {[%clk 0:02:10]}  b5 {[%clk 0:02:58]} 19. Qf4 {[%clk 0:02:11]}  Rae8 {[%clk 0:02:06]} 20. O-O-O {[%clk 0:02:06]}  Qe4 {[%clk 0:02:02]} 21. Bxc5 {[%clk 0:01:53]}  Qxf4+ {[%clk 0:01:59]} 22. gxf4 {[%clk 0:01:54]}  Re4 {[%clk 0:01:51]} 23. Nf3 {[%clk 0:01:43]}  f6 {[%clk 0:01:46]} 24. f5 {[%clk 0:01:26]}  Rf4 {[%clk 0:01:17]} 25. Nd4 {[%clk 0:01:24]}  Rc8 {[%clk 0:01:09]} 26. Bb4 {[%clk 0:01:22]}  gxf5 {[%clk 0:00:40]} 27. Kd2 {[%clk 0:01:20]}  a5 {[%clk 0:00:26]} 28. Bxa5 {[%clk 0:01:08]}  Kd6 {[%clk 0:00:23]} 29. Nxb5+ {[%clk 0:01:04]}  Kc5 {[%clk 0:00:14]} 30. Nd4 {[%clk 0:00:40]}  Kxd5 {[%clk 0:00:12]} 31. Bb4 {[%clk 0:00:34]}  Ra8 {[%clk 0:00:10]} 32. a3 {[%clk 0:00:33]}  Rf2+ {[%clk 0:00:09]} 33. Ke3 {[%clk 0:00:33]}  Rh2 {[%clk 0:00:07]} 34. Nf3+ {[%clk 0:00:33]} 1-0


[Site "https://www.chess.com"]

[Event "Titled Tuesday Blitz June 6 Early 2023"]
[White "Svane, Frederik"]
[Black "Melikyan, Gnel"]
[WhiteFideId "12923044"]
[BlackFideId "54109990"]
[WhiteElo "2502"]
[BlackElo "2138"]
[Result "0-1"]
[Round "3"]
[TimeControl "180+2"]
[Date "2023.06.06"]
[WhiteClock "0:00:06"]
[BlackClock "0:01:16"]
[Board "29"]

1. c4 {[%clk 0:03:00]}  Nf6 {[%clk 0:02:57]} 2. Nc3 {[%clk 0:02:59]}  g6 {[%clk 0:02:53]} 3. e4 {[%clk 0:02:57]}  d6 {[%clk 0:02:54]} 4. d4 {[%clk 0:02:57]}  Bg7 {[%clk 0:02:54]} 5. Be2 {[%clk 0:02:51]}  O-O {[%clk 0:02:54]} 6. Be3 {[%clk 0:02:48]}  c5 {[%clk 0:02:51]} 7. d5 {[%clk 0:02:47]}  e6 {[%clk 0:02:51]} 8. Nf3 {[%clk 0:02:45]}  exd5 {[%clk 0:02:51]} 9. cxd5 {[%clk 0:02:46]}  Re8 {[%clk 0:02:50]} 10. Nd2 {[%clk 0:02:45]}  a6 {[%clk 0:02:49]} 11. a4 {[%clk 0:02:44]}  Nbd7 {[%clk 0:02:43]} 12. O-O {[%clk 0:02:43]}  b6 {[%clk 0:02:44]} 13. Qc2 {[%clk 0:02:05]}  Bb7 {[%clk 0:02:43]} 14. Rae1 {[%clk 0:02:00]}  h5 {[%clk 0:02:32]} 15. h3 {[%clk 0:01:55]}  Qc7 {[%clk 0:02:27]} 16. Nc4 {[%clk 0:01:35]}  Ne5 {[%clk 0:02:21]} 17. Na3 {[%clk 0:01:35]}  Ned7 {[%clk 0:02:17]} 18. f4 {[%clk 0:01:31]}  Nxd5 {[%clk 0:02:16]} 19. Nxd5 {[%clk 0:01:05]}  Bxd5 {[%clk 0:02:15]} 20. Bf3 {[%clk 0:01:05]}  Bc6 {[%clk 0:02:12]} 21. f5 {[%clk 0:00:54]}  Ne5 {[%clk 0:02:08]} 22. fxg6 {[%clk 0:00:50]}  fxg6 {[%clk 0:02:08]} 23. Be2 {[%clk 0:00:49]}  Kh7 {[%clk 0:02:05]} 24. Kh1 {[%clk 0:00:36]}  Qb7 {[%clk 0:02:03]} 25. Bf3 {[%clk 0:00:26]}  Nxf3 {[%clk 0:01:53]} 26. gxf3 {[%clk 0:00:27]}  d5 {[%clk 0:01:53]} 27. Rg1 {[%clk 0:00:14]}  dxe4 {[%clk 0:01:51]} 28. Nc4 {[%clk 0:00:15]}  Re6 {[%clk 0:01:50]} 29. f4 {[%clk 0:00:14]}  Rf8 {[%clk 0:01:47]} 30. Qb3 {[%clk 0:00:11]}  Bd5 {[%clk 0:01:40]} 31. Qc2 {[%clk 0:00:09]}  Bd4 {[%clk 0:01:31]} 32. Rg5 {[%clk 0:00:06]}  Rf5 {[%clk 0:01:27]} 33. Reg1 {[%clk 0:00:05]}  Qf7 {[%clk 0:01:23]} 34. Bxd4 {[%clk 0:00:05]}  cxd4 {[%clk 0:01:22]} 35. Ne5 {[%clk 0:00:05]}  e3+ {[%clk 0:01:17]} 36. Kh2 {[%clk 0:00:05]}  Rexe5 {[%clk 0:01:16]} 37. fxe5 {[%clk 0:00:05]}  Rf2+ {[%clk 0:01:16]} 38. Kg3 {[%clk 0:00:06]}  Qf4# {[%clk 0:01:16]} 0-1


[Site "https://www.chess.com"]

[Event "Titled Tuesday Blitz June 6 Early 2023"]
[White "Manukyan, Sargis V."]
[Black "Fridman, Daniel"]
[WhiteFideId "13303465"]
[BlackFideId "11600454"]
[WhiteElo "2236"]
[BlackElo "2538"]
[Result "1-0"]
[Round "3"]
[TimeControl "180+2"]
[Date "2023.06.06"]
[WhiteClock "0:00:22"]
[BlackClock "0:00:29"]
[Board "31"]

1. d4 {[%clk 0:03:00]}  d5 {[%clk 0:02:59]} 2. c4 {[%clk 0:02:57]}  e6 {[%clk 0:02:59]} 3. Nf3 {[%clk 0:02:57]}  Nf6 {[%clk 0:02:58]} 4. g3 {[%clk 0:02:52]}  Be7 {[%clk 0:02:58]} 5. Bg2 {[%clk 0:02:52]}  O-O {[%clk 0:02:59]} 6. O-O {[%clk 0:02:52]}  dxc4 {[%clk 0:02:59]} 7. Qc2 {[%clk 0:02:51]}  b5 {[%clk 0:02:58]} 8. a4 {[%clk 0:02:35]}  b4 {[%clk 0:02:54]} 9. Ne5 {[%clk 0:02:21]}  Qxd4 {[%clk 0:02:46]} 10. Bxa8 {[%clk 0:02:15]}  Qxe5 {[%clk 0:02:46]} 11. Bf4 {[%clk 0:02:04]}  Qh5 {[%clk 0:02:36]} 12. Bf3 {[%clk 0:01:40]}  Ng4 {[%clk 0:02:35]} 13. Bxg4 {[%clk 0:01:30]}  Qxg4 {[%clk 0:02:35]} 14. Nd2 {[%clk 0:01:30]}  e5 {[%clk 0:02:26]} 15. Bxe5 {[%clk 0:01:18]}  Nc6 {[%clk 0:02:26]} 16. Nxc4 {[%clk 0:01:16]}  Bf5 {[%clk 0:02:01]} 17. Ne3 {[%clk 0:01:01]}  Bxc2 {[%clk 0:01:57]} 18. Nxg4 {[%clk 0:01:01]}  Bf5 {[%clk 0:01:24]} 19. Ne3 {[%clk 0:00:53]}  Bh3 {[%clk 0:01:23]} 20. Bxc7 {[%clk 0:00:49]}  Bxf1 {[%clk 0:01:19]} 21. Kxf1 {[%clk 0:00:50]}  Bf6 {[%clk 0:01:15]} 22. Rc1 {[%clk 0:00:44]}  Nd4 {[%clk 0:01:15]} 23. Nd5 {[%clk 0:00:40]}  Rc8 {[%clk 0:01:09]} 24. Rc4 {[%clk 0:00:25]}  Ne6 {[%clk 0:00:59]} 25. b3 {[%clk 0:00:25]}  Bc3 {[%clk 0:00:29]} 26. Ne7+ {[%clk 0:00:22]} 1-0


[Site "https://www.chess.com"]

[Event "Titled Tuesday Blitz June 6 Early 2023"]
[White "Mitrabha, Guha"]
[Black "Agibileg, Uurtsaikh"]
[WhiteFideId "5057000"]
[BlackFideId "4901606"]
[WhiteElo "2507"]
[BlackElo "2353"]
[Result "1-0"]
[Round "3"]
[TimeControl "180+2"]
[Date "2023.06.06"]
[WhiteClock "0:00:51"]
[BlackClock "0:00:44"]
[Board "33"]

1. d4 {[%clk 0:02:59]}  Nf6 {[%clk 0:02:59]} 2. Nf3 {[%clk 0:02:58]}  g6 {[%clk 0:02:59]} 3. g3 {[%clk 0:02:58]}  Bg7 {[%clk 0:02:59]} 4. Bg2 {[%clk 0:02:58]}  O-O {[%clk 0:02:59]} 5. O-O {[%clk 0:02:59]}  d6 {[%clk 0:03:00]} 6. c4 {[%clk 0:02:58]}  c5 {[%clk 0:03:00]} 7. Nc3 {[%clk 0:02:58]}  cxd4 {[%clk 0:02:58]} 8. Nxd4 {[%clk 0:02:57]}  Qa5 {[%clk 0:02:58]} 9. Nc2 {[%clk 0:02:50]}  Nc6 {[%clk 0:02:57]} 10. Ne3 {[%clk 0:02:48]}  Be6 {[%clk 0:02:56]} 11. Bd2 {[%clk 0:02:47]}  Rfc8 {[%clk 0:02:54]} 12. b3 {[%clk 0:02:44]}  a6 {[%clk 0:02:50]} 13. Ned5 {[%clk 0:02:39]}  Qd8 {[%clk 0:02:49]} 14. Rc1 {[%clk 0:02:36]}  Rab8 {[%clk 0:02:48]} 15. Be3 {[%clk 0:02:33]}  b5 {[%clk 0:02:45]} 16. cxb5 {[%clk 0:02:32]}  axb5 {[%clk 0:02:46]} 17. Nxf6+ {[%clk 0:02:29]}  Bxf6 {[%clk 0:02:45]} 18. Nxb5 {[%clk 0:02:23]}  Rxb5 {[%clk 0:02:35]} 19. Rxc6 {[%clk 0:02:21]}  Rxc6 {[%clk 0:02:15]} 20. Bxc6 {[%clk 0:02:21]}  Ra5 {[%clk 0:02:16]} 21. Qd2 {[%clk 0:02:19]}  Ra6 {[%clk 0:02:07]} 22. Bb7 {[%clk 0:02:15]}  Ra3 {[%clk 0:02:02]} 23. Be4 {[%clk 0:01:54]}  h5 {[%clk 0:01:53]} 24. h4 {[%clk 0:01:50]}  d5 {[%clk 0:01:50]} 25. Rd1 {[%clk 0:01:38]}  Ra6 {[%clk 0:01:27]} 26. Bf3 {[%clk 0:01:26]}  Qa8 {[%clk 0:01:15]} 27. a4 {[%clk 0:01:08]}  Qb8 {[%clk 0:01:02]} 28. Qd3 {[%clk 0:00:59]}  d4 {[%clk 0:00:47]} 29. Qxa6 {[%clk 0:00:53]}  dxe3 {[%clk 0:00:42]} 30. Qa8 {[%clk 0:00:51]}  exf2+ {[%clk 0:00:42]} 31. Kxf2 {[%clk 0:00:51]}  Qxa8 {[%clk 0:00:43]} 32. Bxa8 {[%clk 0:00:51]}  Bxb3 {[%clk 0:00:44]} 33. Rd8+ {[%clk 0:00:51]} 1-0


[Site "https://www.chess.com"]